Cogmind - Beta 13 @@@ ROGUE MODE // 2024.04.03 @ 12:49:56 Player: KerbinFiber Result: Destroyed by S-10 Pest with Light Assault Rifle Performance ------------- Evolutions (1) 500 Regions Visited (2) 400 Robots Destroyed (10) 50 Value Destroyed (150) 150 Prototype IDs (0) 0 Alien Tech Used (0) 0 Bonus (0) 0 TOTAL SCORE: 1100 Bonus ------- None Cogmind --------- Core Integrity 0/400 Matter 277/300 Energy 99/100 System Corruption 0% Temperature Cool (0) Movement Core (50) Location -9/Materials Parts ------- > --- POWER (1) -------- (None) > --- PROPULSION (2) --- (None) > --- UTILITY (4) ------ Structural Scanner Propulsion Shielding Utility Shielding > --- WEAPON (2) ------- (None) > --- INVENTORY (5) ---- High-capacity Storage Unit Medium Matter Pod (100) Utility Shielding Shield Generator Small Laser Peak State ------------ > --- POWER ------------ Light Ion Engine > --- PROPULSION ------- Flight Unit Flight Unit > --- UTILITY ---------- Structural Scanner Terrain Scanner Propulsion Shielding Utility Shielding > --- WEAPON ----------- Light EM Pulse Cannon Light Assault Rifle > --- INVENTORY -------- High-capacity Storage Unit Medium Matter Pod Small Laser [Rating: 10] Favorites ----------- Power Light Ion Engine Engine Light Ion Engine Propulsion Flight Unit Wheel Compact Wheel Flight Unit Flight Unit Utility Propulsion Shielding Device Terrain Scanner Storage Small Storage Unit Protection Propulsion Shielding Weapon Small Laser Energy Gun Small Laser Energy Cannon Light EM Pulse Cannon Ballistic Gun Light Assault Rifle Build | -11 -10 -9 ------- Run | Yrd Mat Mat Slots Evolved 2 | . . 2 Power . | . . . Propulsion . | . . . Utility 2 | . . 2 Weapon . | . . . Parts Attached 24 | 7 10 7 Power 2 | 1 . 1 Engine 2 | 1 . 1 Core . | . . . Reactor . | . . . Propulsion 9 | 2 5 2 Treads . | . . . Leg . | . . . Wheel 2 | 2 . . Hover . | . . . Flight 7 | . 5 2 Utility 9 | 2 4 3 Device 5 | 1 2 2 Storage 2 | 1 1 . Processor . | . . . Hackware . | . . . Protection 2 | . 1 1 Artifact . | . . . Weapon 4 | 2 1 1 Energy Gun 2 | 2 . . Energy Cannon 1 | . . 1 Ballistic Gun 1 | . 1 . Ballistic Cannon . | . . . Launcher . | . . . Special Weapon . | . . . Impact Weapon . | . . . Slashing Weapon . | . . . Piercing Weapon . | . . . Special Melee Weapon . | . . . Unidentified Prototypes . | . . . Corrupted Parts 1 | . 1 . System Corruption 2 | . 2 . Parts Lost 12 | . 5 7 Power 2 | . 1 1 Propulsion 4 | . 1 3 Utility 3 | . 2 1 Weapon 3 | . 1 2 Highest Loss Streak 5 | . 4 5 To Critical Strikes . | . . . Average Slot Usage (%) 86 | . 89 75 Engine 12 | . 13 8 Wheel 3 | . 4 . Flight 20 | . 22 14 Device 8 | . 6 16 Storage 1 | . 2 . Protection 12 | . 11 18 Energy Gun 21 | . 27 2 Energy Cannon 1 | . . 4 Ballistic Gun 2 | . . 9 Naked Turns . | . . . Heaviest Build 27 | 12 27 12 Greatest Support 26 | 26 26 8 Greatest Overweight (x) 6 | . 6 3 Average Overweight (x) . | . . . Largest Inventory Capacity 15 | 8 15 5 Average Capacity 6 | 7 6 5 Most Carried 5 | 3 5 5 Average Carried 3 | 1 3 3 Final Capacity 8 | 8 5 5 Final Carried 5 | 2 5 5 Class Distribution -------------------- 100% | Mutant Dominant Class ---------------- Mutant | -10/Materials Mutant | -9/Materials Resources | -11 -10 -9 ----------- Run | Yrd Mat Mat Matter Collected 495 | 270 155 70 Remotely 40 | 10 30 . Salvage Created 306 | 90 155 61 Parts 17 | 2 10 5 Haulers Intercepted . | . . . Recyclers Shooed . | . . . Parts Field Recycled . | . . . Retrieved Matter . | . . . Parts Self-Destructed . | . . . Prevented . | . . . Kills | -11 -10 -9 ------- Run | Yrd Mat Mat Combat Hostiles Destroyed 8 | . 5 3 Guns 8 | . 5 3 Classes Destroyed 4 | 1 2 1 Recycler 1 | 1 . . Watcher 1 | . . 1 Swarmer 6 | . 3 3 Grunt 2 | . 2 . Best Kill Streak 4 | 1 3 4 Combat Bots Only 3 | . 3 3 Max Kills in Single Turn 1 | 1 1 1 Gunslinging . | . . . Exploded . | . . . Melee . | . . . Uniques/NPCs Destroyed . | . . . Combat | -11 -10 -9 -------- Run | Yrd Mat Mat Hostile Shots Fired 156 | . 54 102 Missed 44 | . 11 33 Damage Taken 1160 | . 420 740 Core 532 | . 130 402 Absorbed by Shields . | . . . Redirected to Shielding 43 | . 12 31 Regen/Repaired (Parts) 13 | . 13 . Core Remaining (%) 74 | 100 48 . Volleys Fired 45 | 4 29 12 Largest 2 | 2 2 2 Hottest 80 | 80 80 76 Shots Fired 73 | 8 50 15 Gun 70 | 8 50 12 Cannon 3 | . . 3 Launcher . | . . . Special . | . . . Kinetic 13 | . 1 12 Thermal 32 | 4 28 . Explosive . | . . . Electromagnetic 28 | 4 21 3 Robot Hit Streak 9 | 1 9 3 Robot Miss Streak 4 | 3 4 4 Penetration Max . | . . . Secondary Targets 2 | . 2 . Max Gunslinging Chain 1 | . 1 . Shots Hit Robots 39 | 2 31 6 Core Hits 15 | 2 7 6 Critical Kills . | . . . Critical Parts Destroyed . | . . . Critical Strikes 2 | . 2 . Corrupt 2 | . 2 . Melee Attacks . | . . . Impact . | . . . Slashing . | . . . Piercing . | . . . Sneak Attacks . | . . . Combat Hostiles . | . . . Follow-up Attacks . | . . . Damage Inflicted 479 | 23 375 81 Guns 443 | 23 375 45 Cannons 36 | . . 36 Explosions . | . . . Melee . | . . . Ramming . | . . . Kinetic 54 | . 9 45 Thermal 153 | 23 130 . Explosive . | . . . Electromagnetic 272 | . 236 36 Impact . | . . . Slashing . | . . . Piercing . | . . . Highest Corruption 2 | . 2 . Average Corruption 2 | . 2 . Corruption Purged . | . . . Corruption Blocked . | . . . Effects 12 | . 12 . Message Errors 2 | . 2 . Matter Fused 4 | . 4 . Heat Flow Errors 2 | . 2 . Energy Discharges 2 | . 2 . Data Loss (minor) 2 | . 2 . Overload Shots . | . . . Overflow Damage . | . . . Projectiles . | . . . Explosions . | . . . Melee . | . . . Knockbacks . | . . . Impact . | . . . Kinetic . | . . . Secondary . | . . . Self-Inflicted Damage . | . . . Shots . | . . . Rammed . | . . . Targets Rammed . | . . . Kicked . | . . . Crushed . | . . . Highest Temperature 445 | 72 445 42 Average Temperature 164 | 37 198 18 Received Heat Transfer 282 | . 147 135 Effects 4 | . 4 . Shutdowns 1 | . 1 . Energy Bleed 1 | . 1 . Interference 1 | . 1 . Short Circuit 1 | . 1 . Siege Activations . | . . . Robots Corrupted . | . . . Combat Hostiles . | . . . Parts Fried . | . . . Impact Corruptions . | . . . Robots Melted . | . . . Combat Hostiles . | . . . Parts Melted . | . . . Heat Transferred 350 | 50 300 . Parts Sabotaged . | . . . Parts Stolen . | . . . Parts Stripped . | . . . Power Chain Reactions . | . . . Alert | -11 -10 -9 ------- Run | Yrd Mat Mat Peak Influence 130 | 5 130 99 Initial 12 | . 3 12 Average 28 | . 41 44 Maximum Alert Level . | . . . Low Security (%) 100 | 100 100 100 Level 1 . | . . . Level 2 . | . . . Level 3 . | . . . Level 4 . | . . . Level 5 . | . . . High Security . | . . . Max Security . | . . . Squads Dispatched 4 | . 2 2 Investigation 2 | . 1 1 Extermination . | . . . Reinforcement 2 | . 1 1 Assault . | . . . Garrison . | . . . Intercept . | . . . Searches Triggered . | . . . Construction Impeded . | . . . Haulers Reinforced . | . . . Active Scanning Responses . | . . . Cargo Convoy Interrupts . | . . . Stealth | -11 -10 -9 --------- Run | Yrd Mat Mat Distress Signals 1 | . . 1 Communications Jammed . | . . . Distress Signals . | . . . Times Spotted 24 | . 8 16 Peak Tracking Total 10 | . 3 10 Tactical Retreats 1 | . 1 . Traps | -11 -10 -9 ------- Run | Yrd Mat Mat Traps Triggered 2 | . . 2 Indirectly . | . . . Trap Hack Attempts . | . . . Triggered . | . . . Disarmed . | . . . Reprogrammed . | . . . Reused . | . . . Traps Extracted . | . . . Installed . | . . . Triggered . | . . . Machines | -11 -10 -9 ---------- Run | Yrd Mat Mat Machines Disabled . | . . . Max in Single Turn . | . . . Machines Repaired . | . . . Machines Dismantled . | . . . Machines Sabotaged . | . . . Overloaded Fab Kills . | . . . Hacking | -11 -10 -9 --------- Run | Yrd Mat Mat Machines Accessed 7 | . 5 2 Terminals 4 | . 3 1 Fabricators . | . . . Repair Stations 1 | . 1 . Recycling Units 1 | . 1 . Scanalyzers 1 | . . 1 Garrison Access . | . . . Total Hacks 18 | . 12 6 Successful 11 | . 7 4 Failed 7 | . 5 2 Catastrophic . | . . . Database Lockouts . | . . . Manual . | . . . Terminals 9 | . 8 1 Fabricators . | . . . Repair Stations 2 | . 2 . Recycling Units 2 | . 2 . Scanalyzers 5 | . . 5 Garrison Access . | . . . Terminal Hacks 4 | . 4 . Record 1 | . 1 . Emergency Access Points 1 | . 1 . Alert Level 1 | . 1 . Zone Layout 1 | . 1 . Fabricator Hacks . | . . . Repair Station Hacks 2 | . 2 . Scan Component 1 | . 1 . Repair 1 | . 1 . Recycling Unit Hacks 1 | . 1 . Report Inventory 1 | . 1 . Scanalyzer 4 | . . 4 Insert Component 2 | . . 2 Analyze 2 | . . 2 Garrison Access Hacks . | . . . Unauthorized Hacks . | . . . Terminals . | . . . Fabricators . | . . . Repair Stations . | . . . Recycling Units . | . . . Scanalyzers . | . . . Garrison Access . | . . . Data Cores Recovered . | . . . Used . | . . . Hacking Detections 5 | . 3 2 Full Trace Events 1 | . 1 . Feedback Events . | . . . Feedback Blocked . | . . . Robot Schematics Acquired . | . . . Robots Built . | . . . Authchips . | . . . Time . | . . . Total Robot Build Rating . | . . . Part Schematics Acquired 2 | . . 2 Parts Built . | . . . Authchips . | . . . Time . | . . . Total Part Build Rating . | . . . Parts Repaired 1 | . 1 . Time 26 | . 26 . Parts Recycled . | . . . Recycled Matter . | . . . Retrieved Matter . | . . . Retrieved Components . | . . . Parts Scanalyzed 2 | . . 2 Part Schematics Acquired 2 | . . 2 Parts Damaged . | . . . Bothacking | -11 -10 -9 ------------ Run | Yrd Mat Mat Used RIF Installer . | . . . Robots Hacked . | . . . Non-combat . | . . . Combat . | . . . Robot Hacks Applied . | . . . Relay Couplers Released . | . . . Fabnet Peak Effective % . | . . . Robots Rewired . | . . . Allies Hacked . | . . . Hacks Repelled . | . . . Allies | -11 -10 -9 -------- Run | Yrd Mat Mat Total Allies . | . . . Largest Group . | . . . Highest-Rated Group . | . . . Highest-Rated Ally . | . . . Total Orders . | . . . Ally Attacks . | . . . Total Damage . | . . . Kills . | . . . Allies Corrupted . | . . . Allies Melted . | . . . Intel | -11 -10 -9 ------- Run | Yrd Mat Mat Robot Analysis Total . | . . . Derelict Logs Recovered . | . . . Drone Launches . | . . . Drone Recoveries . | . . . Exploration | -11 -10 -9 ------------- Run | Yrd Mat Mat Turns Passed 1567 | 516 786 265 Spaces Moved 1046 | 181 636 229 Core 131 | 8 9 114 Treads . | . . . Legs . | . . . Wheels 260 | 173 87 . Hover . | . . . Flight 655 | . 540 115 Fastest Speed 37 | 50 37 37 Average Speed 63 | 88 50 81 Slowest Speed 525 | 90 525 200 Overloaded Moves . | . . . Propulsion Burnouts . | . . . Robots Hopped 8 | . 6 2 Cave-ins Triggered . | . . . Exploration Rate (%) 30 | 10 57 24 Regions Visited 2 Branch Regions . Pre-discovered Areas . | . . . Known Exits Taken . | . . . Unknown Exits Taken 2 | 1 1 . Scrap Searched . | . . . Spaces Dug . | . . . Terrain Destroyed . | . . . Melee . | . . . Projectile . | . . . AOE . | . . . Terrain Rammed . | . . . Walls Destroyed . | . . . Machines Disabled . | . . . Actions | -11 -10 -9 --------- Run | Yrd Mat Mat Total 1865 | 526 1048 291 Wait 738 | 332 365 41 Move 1028 | 180 623 225 Hop 8 | . 6 2 Pick Up 14 | 3 8 3 Fast Attach 14 | 6 4 4 Attach 10 | 1 6 3 Detach 1 | . 1 . Swap . | . . . Drop 7 | . 6 1 Fire 45 | 4 29 12 Melee . | . . . Ram . | . . . Kick . | . . . Crush . | . . . Escape Stasis . | . . . Rewire . | . . . Trap . | . . . Miscellaneous . | . . . Route ------- -11/Scrapyard -10/Materials (discovered 2 exits: *Mat / [*Min]) -9/Materials History --------- Turn | Location | Event 8 | -11/Scrapyard | Discovered new exit (range 16) 517 | -11/Scrapyard | Entered Materials 523 | -10/Materials | Build established: Mutant 585 | -10/Materials | Discovered new exit (range 15) 669 | -10/Materials | Discovered new exit (range 12) 729 | -10/Materials | Repaired Flight Unit 1290 | -10/Materials | Core integrity fell below 50% 1303 | -10/Materials | Entered another Materials area 1303 | -9/Materials | Evolved 2 slots: Utility x2 1322 | -9/Materials | Lost 4 parts (1p1n1u1w) 1534 | -9/Materials | Core integrity fell below 50% 1551 | -9/Materials | Core integrity fell below 20% 1568 | -9/Materials | Destroyed by S-10 Pest with Light Assault Rifle Last Messages --------------- Scanning: Hcp. Storage Unit... Schematic downloaded. Schematics can be used at fabricators to build something. View all schematics in possession via the status screen. 01505_ Acquired Shield Generator. 01522_ Lgt. Ion Engine destroyed. 01525_ Critical hit (Burn: +37). 01525_ Lgt. Assault Rifle destroyed. 01528_ Flight Unit destroyed. 01529_ K-01 Serf collects debris. 01529_ Triggered Explosive Trap. 01529_ An explosion rips through the floor. 01537_ Terrain Scanner destroyed. 01538_ Flight Unit destroyed. 01542_ K-01 Serf cleans the Material Processor. 01561_ Triggered Alarm Trap. 01561_ An alarm sounds. 01561_ ALERT: Alarm triggered, dispatching investigation squad. Map ----- +----------------------------------------------------+ | ?????????????????????????????????????????????????? | | ?????????????????????????????????????????????????? | | ?????????????????????????????????????????????????? | | ?????????????????????????????????????????????????? | | ?????????????????????????????????????????????????? | | ?????????????????????????????????????????????????? | | ?????????????????????????????????????????????????? | | ?????????????????????????????????????????????????? | | ?????????????????????????????????????????????????? | | ?????????????????????????????????? ??????????????? | | ?????????????????????????????????? ??????????????? | | ?????????????????????????????????? ??????????????? | | ?????????????????????????????????? ??????????????? | | ????????????????????????## ## ?????????????? | | ????????????????????????########## ?????????????? | | ???????????????????????? ## ??????????????? | | ????????????????????????"" ## ??????????????? | | ???????????????????????""" ## ??????????????? | | ????????????????????????"" ## ??????????????? | | ???????????????????????? ## ?????????????? | | ?????????????????????????" ?## ##?????????????? | | ????????????????? # ?????" ?## ########???????? | | ????????????????? # ?????? ??## ########???????? | | ????????????????? # # ## ### !!##???????? | | ????????????????? # #####+##### ### !!##???????? | | ?????????????????## @ !!##???????? | | ?????????????????## s u !!##???????? | | ?????????????????## ss !!##???????? | | ?????????????????######### ###### !!##???????? | | ?????????????????######### ###### ######???????? | | ????????????????????????## ##??## ######???????? | | ????????????????????????## a ##??## ##???????????? | | ????????????????????????## ##??## ##???????????? | | ?????????????????????##### ##??## ##???????????? | | ????????????????????###### ##??##/##???????????? | | ????????????????????###! Y# ??"" ##???????????? | | ?????? ???????##! # ???" ##???????????? | | ??????####+##???????##! # ??? ##???????????? | | ??????## ???????##! + ???[!##???????????? | | ?????? ???????##! # ???! #???????????? | | ???????? ???????###! # ? ! #????????????? | | ???????? ???????###### ###?####????????????? | | ???????# #???????#### ##?####????????????? | | ???????## ############# ##?????????????????? | | ??????? # ############# [ ##?????????????????? | | ??????? # # / ##?????????????????? | | ??????? + # """ #### ##?????????????????? | | ??????? # # """"" #### ####?????????????????? | | ??????? # # """"" # ####?????????????????? | | # # """"" # ?!!==##???????????????????? | +----------------------------------------------------+ Best States ------------- Heat Dissipation 28 Energy Generation 10 Energy Capacity 125 Matter Stores 300 Matter Capacity 300 Sight Range 16 Terrain Scan Range 14 Terrain Scan Density 10 Propulsion Shielding 33 Utility Shielding 33 Evasion (%) 62 Item Schematics ----------------- Sml. Laser | -9/Materials | Scanalyzed Hcp. Storage Unit | -9/Materials | Scanalyzed Robot Schematics ------------------ None Fabricated ------------ Nothing Alien Tech Used ----------------- None Achievements -------------- None Challenges ------------ None Game ------ Seed InertialDisposableStabilizer Manual? 0 Play Time 00:19:11 Cumulative 1.1 hours Start 2024.04.03 @ 12:33:44 End 2024.04.03 @ 12:49:56 Sessions 1 Manual Loads 0 Difficulty Rogue Special Mode None Game No. 4 Rogue 2 Adventurer 0 Explorer 2 Win Type - Total 0 Types 0/0/0/0/0/0/0/0/0 Lore% 1 Gallery% 6 Achievement% 7 Wizard Run 0 Options --------- Layout 1 ASCII 0 Keyboard 1 Movement Numpad Keybinds 0 Fullscreen 1 Font 24/Smallcaps Map View 50x35 Zoom Use 0% Tactical HUD 1 Map Filters NONE Filters NONE Steam 1 RUN: 01da687d-e6cc-4547-8f5f-4cca6dd9a7c6